bitfinex-derivatives/quotes_BTCF0:USTF0_20241218
["timestamp","ask_amount","ask_price","bid_price","bid_amount"]
[1734550991902,0.410047,103680.0,103670.0,0.03780708]
[1734550992695,0.410047,103680.0,103670.0,0.08605808]
[1734550993005,0.001,103680.0,103670.0,0.27651397]
[1734550993203,0.001,103680.0,103670.0,0.048251]
[1734550993395,0.049249,103680.0,103660.0,0.64000708]
[1734550993605,0.048251,103670.0,103660.0,0.27920708]
[1734550993798,0.048251,103670.0,103660.0,0.61161973]
[1734550994302,0.409051,103670.0,103660.0,0.56336373]
[1734550994605,0.63631397,103670.0,103660.0,0.56436373]
[1734550994805,0.63631397,103670.0,103660.0,0.32496373]
[1734550995110,0.58806297,103670.0,103660.0,0.05889565]
[1734550995300,0.63631397,103670.0,103660.0,0.05889565]
[1734550995605,0.409051,103670.0,103660.0,0.04480708]
[1734550995800,0.63631397,103670.0,103660.0,0.04480708]
[1734550996107,0.63631397,103670.0,103660.0,0.04280708]
[1734550996596,0.63631397,103670.0,103660.0,0.03880708]
[1734550997304,0.93631397,103670.0,103660.0,0.03880708]
[1734550997495,0.93639737,103670.0,103660.0,0.03880708]
[1734550997892,0.4091344,103670.0,103660.0,0.03880708]
[1734550998098,0.4091344,103670.0,103660.0,0.002]
[1734550998298,0.4091344,103670.0,103660.0,0.03880708]
[1734550998697,0.4091344,103670.0,103660.0,0.002]
[1734550999202,0.4091344,103670.0,103660.0,0.08706308]
[1734550999607,0.4091344,103670.0,103660.0,0.03880708]
[1734551000097,0.63639737,103670.0,103660.0,0.03880708]
[1734551001612,0.048256,103660.0,103640.0,0.62514463]
[1734551001905,0.99712297,103650.0,103640.0,0.62514463]
[1734551002108,0.99712297,103650.0,103640.0,0.43570711]
[1734551002302,0.048274,103620.0,103610.0,0.39926701]
[1734551002515,0.63633697,103620.0,103610.0,0.39926701]
[1734551002701,0.63644227,103620.0,103610.0,0.39926701]
[1734551003298,0.63644227,103620.0,103610.0,0.0014477]
[1734551003501,0.048279,103610.0,103600.0,0.376183]
[1734551003701,0.409079,103610.0,103600.0,0.376183]
[1734551004608,0.048279,103610.0,103600.0,0.1]
[1734551004804,0.409079,103610.0,103600.0,0.1]
[1734551005107,0.410079,103610.0,103600.0,0.102]
[1734551005710,0.411079,103610.0,103600.0,0.111]
[1734551006207,0.410079,103610.0,103600.0,0.102]
[1734551006404,0.411079,103610.0,103600.0,0.11]
[1734551006606,0.558726,103610.0,103600.0,0.11]
[1734551009115,0.411079,103610.0,103600.0,0.11]
[1734551009411,0.558726,103610.0,103600.0,0.11]
[1734551010208,0.858726,103610.0,103600.0,0.1105]
[1734551010407,0.558726,103610.0,103600.0,0.1105]
[1734551011308,0.558726,103610.0,103600.0,0.11]
[1734551012311,0.558726,103610.0,103600.0,0.1105]
[1734551013307,0.558726,103610.0,103600.0,0.11]
[1734551014918,0.557726,103610.0,103600.0,0.109]
[1734551015121,0.857726,103610.0,103600.0,0.109]
[1734551015317,0.048284,103600.0,103590.0,9.064e-05]
[1734551015511,0.704378,103600.0,103590.0,9.064e-05]
[1734551015711,0.048293,103580.0,103570.0,0.4613]
[1734551015917,0.409093,103580.0,103570.0,0.4613]
[1734551016715,0.409093,103580.0,103570.0,0.509598]
[1734551016919,0.048293,103580.0,103570.0,0.509598]
[1734551017628,0.001,103600.0,103570.0,1.269747]
[1734551017813,0.4091813,103620.0,103590.0,0.3608]
[1734551018016,0.4091813,103620.0,103600.0,0.2233]
[1734551018211,0.556726,103610.0,103600.0,0.2233]
[1734551018417,0.048288,103590.0,103580.0,0.0005]
[1734551018628,0.048288,103590.0,103580.0,0.2238]
[1734551019227,0.048288,103590.0,103580.0,0.2233]
[1734551019928,0.049288,103590.0,103580.0,0.2293]
[1734551020231,0.049288,103590.0,103580.0,0.2298]
[1734551020912,0.410088,103590.0,103580.0,0.2298]
[1734551021322,0.410088,103590.0,103580.0,0.2293]
[1734551021629,0.410088,103590.0,103580.0,0.006]
[1734551021822,0.557735,103590.0,103580.0,0.006]
[1734551022218,0.410088,103590.0,103580.0,0.006]
[1734551022614,0.557735,103590.0,103580.0,0.006]
[1734551023026,0.410088,103590.0,103580.0,0.006]
[1734551024034,0.049288,103590.0,103580.0,0.006]
[1734551024333,0.409085,103600.0,103580.0,0.296992]
[1734551024535,0.409085,103600.0,103590.0,0.2356]
[1734551026032,0.409085,103600.0,103590.0,0.2376]
[1734551026329,0.40908,103610.0,103590.0,0.646686]
[1734551026727,0.40908,103610.0,103590.0,0.68824826]
[1734551027032,0.457362,103610.0,103590.0,0.68824826]
[1734551027338,0.40908,103610.0,103590.0,0.68824826]
[1734551027533,0.40908,103610.0,103600.0,0.2266]
[1734551028831,0.04928,103610.0,103600.0,0.274884]
[1734551029131,0.0001053,103620.0,103600.0,0.274884]
[1734551029330,0.048282,103610.0,103600.0,0.274884]
[1734551029538,0.0483803,103620.0,103600.0,0.574884]
[1734551029929,0.0483803,103620.0,103600.0,0.935684]
[1734551030125,0.0483803,103620.0,103600.0,0.637684]
[1734551030432,0.048279,103610.0,103600.0,0.5894]
[1734551030625,0.0483803,103620.0,103600.0,0.637681]
[1734551030820,0.0483803,103620.0,103610.0,0.244]
[1734551031026,0.0483803,103620.0,103610.0,0.33384126]
[1734551031333,0.40907,103630.0,103610.0,0.69464126]
[1734551031627,0.40907,103630.0,103620.0,0.2374]
[1734551032233,0.4091439,103630.0,103620.0,0.2374]
[1734551032623,0.4101439,103630.0,103620.0,0.2374]
[1734551033122,0.048274,103620.0,103610.0,0.47329824]
[1734551033331,0.048274,103620.0,103610.0,0.2708605]
[1734551033332,0.556721,103620.0,103610.0,0.2708605]
[1734551034327,0.556721,103620.0,103610.0,0.04156226]
[1734551035538,0.410074,103620.0,103610.0,0.04156226]
[1734551035734,0.52355905,103620.0,103610.0,0.04156226]
[1734551036136,0.048279,103610.0,103600.0,0.29597828]
[1734551036633,0.048279,103610.0,103600.0,0.33754054]
[1734551037238,0.050276,103620.0,103600.0,1.12356578]
[1734551037540,0.050276,103620.0,103610.0,0.271079]
[1734551037541,0.049276,103620.0,103610.0,0.271079]
[1734551037741,0.050276,103620.0,103610.0,0.271079]
[1734551037932,0.050276,103620.0,103610.0,0.31264126]
[1734551038339,0.049276,103620.0,103610.0,0.31264126]
[1734551038740,0.049276,103620.0,103610.0,0.26436226]
[1734551039133,0.048276,103620.0,103610.0,0.26736226]
[1734551039643,0.048276,103620.0,103610.0,0.31564126]
[1734551040033,0.4091459,103630.0,103610.0,0.67644126]
[1734551040637,0.4091459,103630.0,103610.0,0.634879]
[1734551041137,0.4101459,103630.0,103610.0,0.633879]
[1734551041337,0.4101459,103630.0,103610.0,0.631879]
[1734551041540,0.4111459,103630.0,103610.0,0.631876]
[1734551042141,0.4594189,103630.0,103610.0,0.631876]
[1734551042542,0.0503459,103630.0,103610.0,0.631876]
[1734551042732,0.0005,103640.0,103630.0,0.04827]
[1734551042934,0.24792158,103650.0,103640.0,0.048265]
[1734551043131,0.18048584,103660.0,103650.0,0.04826]
[1734551043336,0.08835373,103670.0,103650.0,1.079207]
[1734551043534,0.21856369,103680.0,103660.0,0.791903]
[1734551043733,0.21556369,103680.0,103670.0,0.55681046]
[1734551043933,0.00011517,103680.0,103670.0,0.55681046]
[1734551044655,0.00011517,103680.0,103670.0,0.40916346]
[1734551045036,0.40916217,103680.0,103670.0,0.00011246]
[1734551045237,0.55680917,103680.0,103670.0,0.00011246]
[1734551045432,0.40916217,103680.0,103670.0,0.00011246]
[1734551049052,0.40916217,103680.0,103670.0,0.01000068]
[1734551050455,0.36091517,103680.0,103670.0,0.05825168]
[1734551051150,0.00011517,103680.0,103670.0,0.35825168]
[1734551051337,0.1,103700.0,103680.0,0.048246]
[1734551051543,0.04410359,103700.0,103690.0,1.012389]
[1734551051952,0.04410359,103700.0,103690.0,0.864742]
[1734551052445,0.09243248,103700.0,103690.0,0.4557]
[1734551052649,0.09243248,103700.0,103690.0,0.2347]
[1734551053341,0.04419548,103700.0,103690.0,0.282942]
[1734551053538,0.04419548,103700.0,103690.0,1.091389]
[1734551054544,0.04419548,103700.0,103690.0,0.791389]
[1734551054754,0.04419548,103700.0,103690.0,1.091389]
[1734551055147,0.409029,103720.0,103700.0,0.048234]
[1734551055347,0.3608,103720.0,103700.0,0.435081]
[1734551055545,0.04967111,103730.0,103710.0,0.556677]
[1734551055938,0.41047111,103730.0,103710.0,0.556677]
[1734551056146,7.653e-05,103720.0,103710.0,0.04823]
[1734551057452,7.653e-05,103720.0,103710.0,0.556677]
[1734551058247,7.653e-05,103720.0,103710.0,0.794677]
[1734551058752,7.653e-05,103720.0,103710.0,0.64703]
[1734551059146,7.653e-05,103720.0,103710.0,0.65709951]
[1734551062654,0.40910453,103720.0,103710.0,0.01006951]
[1734551062843,0.40910453,103720.0,103690.0,0.5955]
[1734551062844,0.048233,103710.0,103690.0,0.643739]
[1734551063046,0.048233,103710.0,103700.0,0.048237]
[1734551063354,0.36087653,103720.0,103690.0,0.5955]
[1734551063558,0.048236,103710.0,103690.0,0.64374]
[1734551063941,0.048236,103710.0,103690.0,0.69198]
[1734551064248,0.048236,103710.0,103690.0,0.65384883]
[1734551064752,0.048237,103700.0,103690.0,0.01010883]
[1734551065056,0.048237,103700.0,103680.0,0.6366917]
[1734551066849,0.409037,103700.0,103680.0,0.6366917]
[1734551067057,0.048242,103690.0,103680.0,0.07917985]
[1734551067756,0.048242,103690.0,103680.0,0.05942718]
[1734551067947,0.048242,103690.0,103680.0,0.01118218]
[1734551068148,0.048242,103690.0,103680.0,0.05942918]
[1734551068344,0.048242,103690.0,103680.0,0.01418218]
[1734551068545,0.556689,103690.0,103680.0,0.003]
[1734551068858,0.730747,103690.0,103680.0,0.23229824]
[1734551069058,0.631342,103690.0,103680.0,0.23229824]
[1734551069251,0.631342,103690.0,103680.0,0.003]
[1734551069649,0.631342,103690.0,103680.0,0.002]
[1734551070050,0.631342,103690.0,103670.0,0.2294107]
[1734551070356,0.409047,103680.0,103670.0,0.00011246]
[1734551070557,0.4091548,103680.0,103670.0,0.00011246]
[1734551070859,0.8568018,103680.0,103670.0,0.00011246]
[1734551071058,0.8568018,103680.0,103660.0,0.22997824]
[1734551071059,0.048251,103670.0,103660.0,0.22997824]
[1734551071256,0.649851,103670.0,103660.0,0.22997824]
[1734551071750,0.649851,103670.0,103660.0,0.00068]
[1734551073045,0.650851,103670.0,103660.0,0.00868]
[1734551073660,0.798498,103670.0,103660.0,0.00868]
[1734551076254,1.098498,103670.0,103660.0,0.00868]
[1734551076452,1.322398,103670.0,103660.0,0.00868]
[1734551077355,1.322398,103670.0,103660.0,0.00568]
[1734551077660,1.321398,103670.0,103660.0,0.00068]
[1734551077861,1.021398,103670.0,103660.0,0.00068]
[1734551078058,1.021398,103670.0,103640.0,0.05020911]
[1734551078059,0.04826,103650.0,103640.0,0.05020911]
[1734551078254,0.40906,103650.0,103640.0,0.06023374]
[1734551078562,0.40906,103650.0,103640.0,0.05973374]
[1734551079154,0.41006,103650.0,103640.0,0.06573374]
[1734551079454,0.41006,103650.0,103640.0,0.06923374]
[1734551080057,0.41006,103650.0,103640.0,0.02097174]
[1734551080458,0.41006,103650.0,103640.0,0.02047174]
[1734551080959,0.048253,103670.0,103650.0,0.048258]
[1734551081166,0.409053,103670.0,103650.0,0.048258]
[1734551081658,0.048256,103660.0,103640.0,0.5278644]
[1734551081861,0.409054,103670.0,103650.0,0.409059]
[1734551083166,0.409054,103670.0,103660.0,0.2222]
[1734551085765,0.409054,103670.0,103660.0,0.270456]
[1734551085962,0.409054,103670.0,103660.0,0.2222]
[1734551086768,0.04826,103650.0,103640.0,0.41342055]
[1734551087067,0.40906,103650.0,103640.0,0.63382055]
[1734551087265,0.50738966,103650.0,103640.0,0.41342055]
[1734551087459,0.60571932,103650.0,103640.0,0.40339592]
[1734551087664,0.60583033,103650.0,103640.0,0.40339592]
[1734551087966,0.50750067,103650.0,103640.0,0.40639592]
[1734551088360,0.50750067,103650.0,103640.0,0.40494881]
[1734551088774,0.50850067,103650.0,103640.0,0.41094881]
[1734551089069,0.50850067,103650.0,103640.0,0.009]
[1734551091871,0.90683033,103650.0,103640.0,0.009]
[1734551092574,1.13093033,103650.0,103640.0,0.009]
[1734551092973,1.13093033,103650.0,103620.0,0.17265057]
[1734551092974,0.048265,103640.0,103620.0,0.17265057]
[1734551093171,0.96652932,103630.0,103620.0,0.17265057]
[1734551093372,0.86819966,103630.0,103620.0,0.17265057]
[1734551093574,1.16819966,103630.0,103620.0,0.17265057]
[1734551093875,0.048274,103620.0,103610.0,0.23016824]
[1734551094075,0.60583002,103620.0,103610.0,0.00087]
[1734551094460,0.60583002,103620.0,103610.0,0.00037]
[1734551094877,0.50750036,103620.0,103610.0,0.00037]
[1734551095562,0.50850036,103620.0,103610.0,0.00087]
[1734551096367,0.50850036,103620.0,103610.0,0.00037]
[1734551096670,0.50950036,103620.0,103610.0,0.00037]
[1734551097172,0.50950036,103620.0,103610.0,0.048649]
[1734551097481,0.60783002,103620.0,103610.0,0.00037]
[1734551098164,0.50950036,103620.0,103610.0,0.00037]
[1734551098575,0.50950036,103620.0,103610.0,0.048649]
[1734551098768,0.4111707,103620.0,103610.0,0.048649]
[1734551098964,0.50950036,103620.0,103610.0,0.048649]
[1734551099272,0.4111707,103620.0,103610.0,0.048649]
[1734551099574,0.4111707,103620.0,103610.0,0.46907]
[1734551099764,0.4111707,103620.0,103610.0,0.4687]
[1734551100169,0.4111707,103620.0,103610.0,0.47875876]
[1734551100362,0.3628967,103620.0,103610.0,0.52703776]
[1734551100675,0.0020967,103620.0,103610.0,0.88783776]
[1734551100872,0.0020967,103620.0,103610.0,0.92434544]
[1734551101276,0.14870036,103620.0,103610.0,0.87606644]
[1734551101479,0.50950036,103620.0,103610.0,0.01005876]
[1734551101774,0.048279,103610.0,103600.0,0.97450195]
[1734551101975,0.048279,103610.0,103600.0,0.65020963]
[1734551101976,0.50740866,103610.0,103600.0,0.65020963]
[1734551102272,0.50740866,103610.0,103600.0,0.38850195]
[1734551102478,0.409079,103610.0,103600.0,0.38850195]
[1734551102671,0.3608967,103620.0,103600.0,0.43678595]
[1734551102672,0.3618967,103620.0,103600.0,0.43678595]
[1734551102866,0.3618967,103620.0,103600.0,0.38850195]
[1734551102867,0.50740866,103610.0,103600.0,0.38850195]
[1734551103064,0.048284,103600.0,103590.0,0.39084943]
[1734551103276,0.60574332,103600.0,103590.0,0.24018535]
[1734551103577,0.60574332,103600.0,103590.0,0.25488959]
[1734551103970,0.93527194,103600.0,103590.0,0.25488959]
[1734551104170,0.93527194,103600.0,103590.0,0.25588959]
[1734551104171,0.78752797,103600.0,103590.0,0.25588959]
[1734551104366,0.78752797,103600.0,103590.0,0.25538959]
[1734551104569,0.55682797,103600.0,103590.0,0.02520424]
[1734551105374,0.70457194,103600.0,103590.0,0.02720424]
[1734551105679,0.048288,103590.0,103580.0,0.0005]
[1734551105985,0.55683197,103590.0,103580.0,0.0005]
[1734551106372,0.55683197,103590.0,103570.0,0.54253946]
[1734551106576,0.409093,103580.0,103570.0,0.50603178]
[1734551106766,0.14774397,103580.0,103570.0,0.81853378]
[1734551106970,0.3608,103610.0,103580.0,0.001]
[1734551107171,0.3608,103610.0,103600.0,0.048284]
[1734551107468,0.048284,103600.0,103590.0,0.2399]
[1734551107672,0.049288,103590.0,103580.0,0.0065]
[1734551107981,0.001,103590.0,103580.0,0.054793]
[1734551108167,0.048286,103600.0,103580.0,0.410593]
[1734551108369,0.048286,103600.0,103580.0,0.049293]
[1734551108573,0.410081,103610.0,103590.0,0.048286]
[1734551108781,0.410081,103610.0,103600.0,0.2217]
[1734551109084,0.409081,103610.0,103600.0,0.2217]
[1734551109270,0.51864067,103620.0,103600.0,0.630784]
[1734551109271,0.4191717,103620.0,103600.0,0.630784]
[1734551109578,0.409079,103610.0,103600.0,0.6818]
[1734551110176,0.409079,103610.0,103600.0,0.4616]
[1734551110577,0.410079,103610.0,103600.0,0.4616]
[1734551110876,0.411079,103610.0,103600.0,0.4616]
[1734551111078,0.55882297,103610.0,103600.0,0.2217]
[1734551111285,0.048288,103590.0,103580.0,0.2202]
[1734551111583,0.409088,103590.0,103580.0,0.4482]
[1734551113381,0.409088,103590.0,103580.0,0.45829975]
[1734551113573,0.409088,103590.0,103580.0,0.46329975]
[1734551113574,0.410088,103590.0,103580.0,0.46329975]
[1734551114068,0.410088,103590.0,103580.0,0.24309975]
[1734551114273,0.55783197,103590.0,103580.0,0.233]
[1734551114477,0.410088,103590.0,103580.0,0.233]
[1734551115180,0.410088,103590.0,103580.0,0.281293]
[1734551115382,0.3608,103610.0,103580.0,1.08983697]
[1734551115586,0.61602479,103620.0,103600.0,0.048284]
[1734551115883,0.14089093,103630.0,103620.0,0.048274]
[1734551116082,0.25351188,103630.0,103620.0,0.048274]
[1734551116272,0.25351188,103630.0,103620.0,0.634174]
[1734551116876,0.25361024,103630.0,103620.0,0.634174]
[1734551117072,9.836e-05,103630.0,103620.0,0.634174]
[1734551117483,0.00109836,103630.0,103620.0,0.78191797]
[1734551117880,0.00109836,103630.0,103620.0,0.634174]
[1734551118075,0.00209836,103630.0,103620.0,0.634174]
[1734551118285,0.00209836,103630.0,103620.0,0.86435935]
[1734551118483,0.00109836,103630.0,103620.0,0.86435935]
[1734551118691,0.00209836,103630.0,103620.0,0.86435935]
[1734551118988,0.00209836,103630.0,103620.0,0.87429466]
[1734551120088,0.05036836,103630.0,103620.0,0.81608535]
[1734551120890,0.05036836,103630.0,103620.0,0.5859]
[1734551121989,0.00209836,103630.0,103620.0,0.634174]
[1734551122993,0.00209836,103630.0,103620.0,0.5859]
[1734551122994,0.05036836,103630.0,103620.0,0.5859]
[1734551123583,0.05036836,103630.0,103620.0,0.81608535]
[1734551123982,0.00209836,103630.0,103620.0,0.81608535]
[1734551124186,0.05036836,103630.0,103620.0,0.59098535]
[1734551124585,0.19811233,103630.0,103620.0,0.59098535]
[1734551124785,0.048274,103620.0,103610.0,0.83917056]
[1734551125599,0.00209836,103630.0,103610.0,0.83917056]
[1734551125792,0.04937236,103630.0,103620.0,0.3608]
[1734551125993,0.04937236,103630.0,103610.0,0.65726321]
[1734551126194,0.00109836,103630.0,103620.0,0.409074]
[1734551126394,0.00109836,103630.0,103610.0,0.65726321]
[1734551126395,0.04936836,103630.0,103610.0,0.65726321]
[1734551126795,0.04936836,103630.0,103620.0,0.3608]
[1734551126999,0.04836836,103630.0,103620.0,0.3608]
[1734551127693,0.04936836,103630.0,103620.0,0.3608]
[1734551128099,0.04936836,103630.0,103610.0,0.83917056]
[1734551128398,0.048274,103620.0,103610.0,0.60077056]
[1734551128587,0.048274,103620.0,103610.0,0.23997056]
[1734551129690,0.22119836,103630.0,103610.0,0.41886421]
[1734551129894,0.00109836,103630.0,103620.0,0.409074]
[1734551130085,9.836e-05,103630.0,103620.0,1.07441797]
[1734551130292,0.00109836,103630.0,103620.0,1.156074]
[1734551130487,0.18965293,103650.0,103630.0,0.048267]
[1734551130488,0.18915293,103650.0,103630.0,0.048267]
[1734551130788,0.18915293,103650.0,103640.0,0.3608]
[1734551131193,0.048262,103650.0,103640.0,0.3608]
[1734551131401,0.048265,103640.0,103630.0,0.3608]
[1734551131596,0.19600897,103640.0,103630.0,0.3608]
[1734551131789,0.04827,103630.0,103620.0,0.59098535]
[1734551132298,0.04827,103630.0,103620.0,0.23018535]
[1734551132494,0.19601397,103630.0,103620.0,0.23018535]
[1734551132797,0.85681397,103630.0,103600.0,0.34434175]
[1734551132996,0.55682297,103610.0,103600.0,0.34434175]
[1734551133693,0.409079,103610.0,103600.0,0.34434175]
[1734551134091,0.409079,103610.0,103590.0,0.36224786]
[1734551134293,0.048284,103600.0,103590.0,0.36224786]
[1734551134693,0.048288,103590.0,103580.0,0.49162977]
[1734551134895,0.048288,103590.0,103580.0,0.2173]
[1734551135301,0.048293,103580.0,103570.0,0.98128923]
[1734551135806,0.048293,103580.0,103570.0,0.9470504]
[1734551135991,0.409084,103600.0,103570.0,0.94026146]
[1734551135992,0.3608,103600.0,103570.0,0.94026146]
[1734551136192,0.04929,103590.0,103580.0,0.3608]
[1734551137302,0.048293,103580.0,103570.0,0.64496768]
[1734551137601,0.049293,103580.0,103570.0,0.64546768]
[1734551138006,0.049293,103580.0,103570.0,0.36138057]
[1734551138204,0.048293,103580.0,103570.0,0.04161034]
[1734551138404,0.048293,103580.0,103570.0,0.05517458]
[1734551138605,0.048293,103580.0,103570.0,0.01414481]
[1734551139195,0.050293,103580.0,103570.0,0.38194481]
[1734551139395,0.050293,103580.0,103570.0,0.36838057]
[1734551140008,0.050293,103580.0,103570.0,0.38245992]
[1734551140399,0.050293,103580.0,103570.0,0.02115992]
[1734551140604,0.19803697,103580.0,103570.0,0.02115992]
[1734551140803,0.55895137,103580.0,103570.0,0.02115992]
[1734551141505,0.4112074,103580.0,103570.0,0.02115992]
[1734551141707,0.4102074,103580.0,103570.0,0.02115992]
[1734551141901,0.55795137,103580.0,103570.0,0.02115992]
[1734551142106,0.19715137,103580.0,103570.0,0.02115992]
[1734551142309,0.0484074,103580.0,103570.0,0.01615992]
[1734551142814,0.0484074,103580.0,103570.0,0.37695992]
[1734551143005,0.0001144,103580.0,103570.0,0.63057857]
[1734551143311,0.55695137,103580.0,103570.0,0.00208057]
[1734551143609,0.55695137,103580.0,103570.0,0.01618362]
[1734551143914,0.79415137,103580.0,103570.0,0.01618362]
[1734551147000,0.19615137,103580.0,103570.0,0.01618362]
[1734551147206,0.0001144,103580.0,103570.0,0.42528162]
[1734551147408,0.0484074,103580.0,103570.0,0.63597857]
[1734551147712,0.0484074,103580.0,103570.0,0.58768057]
[1734551148514,0.048302,103560.0,103550.0,0.5993]
[1734551148714,0.048302,103560.0,103550.0,0.61341317]
[1734551148914,0.048302,103560.0,103550.0,0.3608]
[1734551149106,0.19604597,103560.0,103550.0,0.3608]
[1734551149302,0.048302,103560.0,103550.0,0.3608]
[1734551149612,0.049302,103560.0,103550.0,0.3608]
[1734551149816,0.049302,103560.0,103550.0,0.3658]
[1734551150116,0.19804597,103560.0,103550.0,0.3658]
[1734551150413,0.19804597,103560.0,103550.0,0.3663]
[1734551150813,0.050302,103560.0,103550.0,0.3663]
[1734551151111,0.050302,103560.0,103550.0,0.37633665]
[1734551151317,0.050302,103560.0,103550.0,0.01553665]
[1734551151502,0.70658994,103560.0,103540.0,0.01]
[1734551151708,0.55692558,103550.0,103540.0,0.01]
[1734551152009,0.048312,103540.0,103530.0,0.28810254]
[1734551152210,0.19605597,103540.0,103530.0,0.28810254]
[1734551153215,0.55685597,103540.0,103530.0,0.28810254]
[1734551153513,0.048326,103510.0,103500.0,0.6865]
[1734551153726,0.50854397,103510.0,103470.0,0.42674287]
[1734551153907,0.50495095,103490.0,103470.0,1.0367295]
[1734551154217,0.45661395,103490.0,103470.0,1.02673222]
[1734551154419,0.04842747,103480.0,103470.0,0.64700594]
[1734551154617,0.55697144,103480.0,103470.0,0.62351931]
[1734551154818,0.048344,103470.0,103460.0,0.23238175]
[1734551155120,0.55688797,103470.0,103460.0,8.175e-05]
[1734551155417,0.55688797,103470.0,103460.0,0.02356963]
[1734551155608,0.55688797,103470.0,103460.0,8.175e-05]
[1734551156321,0.411144,103470.0,103460.0,8.175e-05]
[1734551157028,0.410144,103470.0,103460.0,8.175e-05]
[1734551157215,0.55888797,103470.0,103460.0,8.175e-05]
[1734551157620,0.19808797,103470.0,103460.0,8.175e-05]
[1734551157822,0.411144,103470.0,103460.0,8.175e-05]
[1734551158614,0.55888797,103470.0,103460.0,8.175e-05]
[1734551158821,0.002,103470.0,103460.0,8.175e-05]
[1734551159210,0.050344,103470.0,103460.0,8.175e-05]
[1734551159617,0.411144,103470.0,103460.0,8.175e-05]
[1734551159820,0.55888797,103470.0,103460.0,8.175e-05]
[1734551160126,0.411144,103470.0,103460.0,8.175e-05]
[1734551160517,0.002,103470.0,103460.0,8.175e-05]
[1734551160721,0.002,103470.0,103460.0,0.85697472]
[1734551160914,8.747e-05,103480.0,103460.0,0.93023075]
[1734551161119,8.747e-05,103480.0,103470.0,0.3608]
[1734551161314,0.04842747,103480.0,103460.0,0.22108175]
[1734551161624,0.048344,103470.0,103460.0,8.175e-05]
[1734551161819,0.048354,103450.0,103440.0,0.3622502]
[1734551162125,0.048354,103450.0,103440.0,0.0014502]
[1734551162524,0.409146,103470.0,103430.0,0.50854397]
[1734551162820,8.747e-05,103480.0,103450.0,0.409154]
[1734551163124,8.747e-05,103480.0,103470.0,0.55688797]
[1734551163315,8.747e-05,103480.0,103470.0,1.02858797]
[1734551163626,0.192327,103530.0,103490.0,0.0005]
[1734551163825,0.14401,103530.0,103520.0,0.3608]
[1734551164327,0.14401,103530.0,103520.0,0.2345]
[1734551164619,0.14408366,103530.0,103520.0,0.2345]
[1734551165025,0.19239966,103530.0,103510.0,0.59347495]
[1734551165216,0.19339966,103530.0,103510.0,0.82847495]
[1734551165412,0.65362763,103530.0,103510.0,0.46767495]
[1734551165729,0.048321,103520.0,103510.0,0.23507495]
[1734551165918,0.14508366,103530.0,103510.0,0.64419995]
[1734551166223,0.048321,103520.0,103510.0,7.495e-05]
[1734551167028,0.14508366,103530.0,103510.0,0.40919995]
[1734551167532,0.19640066,103530.0,103510.0,0.36087495]
[1734551167715,0.048321,103520.0,103510.0,0.36087495]
[1734551167919,0.409121,103520.0,103510.0,7.495e-05]
[1734551168119,0.55686497,103520.0,103510.0,7.495e-05]
[1734551168425,0.50888366,103530.0,103510.0,7.495e-05]
[1734551168722,0.19340166,103530.0,103510.0,0.36087495]
[1734551168925,0.19440066,103530.0,103510.0,0.36087495]
[1734551169316,0.003,103520.0,103510.0,0.36087495]
[1734551169515,0.003,103520.0,103510.0,0.85694492]
[1734551169925,0.14508366,103530.0,103520.0,0.048321]
[1734551170120,0.048315,103530.0,103520.0,0.249281]
[1734551170325,0.048315,103530.0,103460.0,0.0005]
[1734551170326,0.3608,103490.0,103440.0,0.4168451]
[1734551170626,0.3608,103450.0,103440.0,0.75595834]
[1734551170930,0.3608,103450.0,103440.0,0.69781931]
[1734551171320,0.40922589,103450.0,103440.0,0.39791385]
[1734551171630,0.40922589,103450.0,103440.0,9.454e-05]
[1734551171813,0.36087289,103450.0,103440.0,0.30009454]
[1734551172013,0.36187289,103450.0,103440.0,0.35545154]
[1734551172729,0.3608,103460.0,103440.0,0.94445601]
[1734551172926,0.3608,103460.0,103450.0,0.048352]
[1734551173227,0.3608,103470.0,103450.0,0.278752]
[1734551173529,0.3608,103470.0,103460.0,0.50745047]
[1734551173823,0.36089214,103470.0,103460.0,0.50745047]
[1734551174032,0.36089214,103470.0,103460.0,0.80745047]
[1734551175222,9.214e-05,103470.0,103460.0,0.80745047]
[1734551175429,0.001,103470.0,103460.0,0.81545047]
[1734551175628,0.3608,103480.0,103470.0,0.048341]
[1734551175829,0.3608,103480.0,103470.0,0.272941]
[1734551176027,0.3608,103480.0,103470.0,0.572941]
[1734551176424,0.3608799,103480.0,103470.0,0.572941]
[1734551176728,0.4092169,103480.0,103460.0,0.2424]
[1734551176923,0.3608,103470.0,103460.0,0.2424]
[1734551177231,0.3608,103470.0,103460.0,0.282746]
[1734551177623,0.3608,103470.0,103460.0,0.2344]
[1734551178134,0.3608,103470.0,103460.0,0.2394]
[1734551178626,0.3618799,103480.0,103470.0,0.002]
[1734551178818,0.58900447,103470.0,103440.0,9.454e-05]
[1734551179024,0.94980447,103450.0,103440.0,9.454e-05]
[1734551179422,1.29815547,103450.0,103410.0,0.02050028]
[1734551179635,0.7216,103420.0,103410.0,0.00145008]
[1734551179827,0.7216,103420.0,103410.0,0.04981908]
[1734551180527,0.00010662,103420.0,103410.0,0.3498872]
[1734551180727,0.00010662,103420.0,103410.0,0.8088872]
[1734551181032,0.3608,103440.0,103430.0,0.04836]
[1734551181729,0.3608,103450.0,103430.0,0.34886]
[1734551181928,0.3608,103460.0,103450.0,0.048351]
[1734551182119,0.0966,103560.0,103550.0,2.8e-07]
[1734551182321,0.06758095,103520.0,103490.0,0.048332]
[1734551182530,0.3613,103510.0,103490.0,0.048332]
[1734551183024,0.58900447,103500.0,103480.0,0.01]
[1734551183224,0.40923737,103490.0,103460.0,0.048345]
[1734551183732,0.36090437,103490.0,103470.0,0.01]
[1734551183926,0.63734247,103480.0,103460.0,0.3708]
[1734551184535,0.63734347,103480.0,103460.0,0.3708]
[1734551184835,0.409144,103470.0,103440.0,0.058355]
[1734551185038,0.3608,103460.0,103440.0,0.34623201]
[1734551185235,0.3608,103460.0,103440.0,0.29787701]
[1734551185537,0.3608,103460.0,103440.0,0.33623001]
[1734551185836,0.3608,103460.0,103450.0,0.01]
[1734551186232,0.409146,103460.0,103450.0,0.01]
[1734551186423,0.048354,103450.0,103420.0,0.31577808]
[1734551186629,0.3608,103440.0,103420.0,0.30527808]